Workbook

Sheet Answer Report 1
A1: Microsoft Excel 14.1 Answer Report
A2: Worksheet: [Workbook1]Sheet1
A3: Report Created: 5/23/2016 11:06:27 AM
A4: Result: Solver found a solution. All constraints and optimality conditions are satisfied.
A5: Solver Engine
B6: Engine: GRG Nonlinear
B7: Solution Time: 2.537861 Seconds.
B8: Iterations: 11 Subproblems: 0
A9: Solver Options
B10: Max Time Unlimited , Iterations Unlimited , Precision 1e-06
B11: Convergence 0.0001, Population Size 100, Random Seed 0, Derivatives Forward , Require Bounds
B12: Max Subproblems Unlimited , Max Integer Sols Unlimited , Integer Tolerance 1%, Solve Without Integer Constraints , Assume NonNegative
A14: Objective Cell (Min)
B15: Cell | C15: Name | D15: Original Value | E15: Final Value
B16: $M$2 | C16: objective | D16: 63.98 | E16: 48.92
A19: Variable Cells
B20: Cell | C20: Name | D20: Original Value | E20: Final Value | F20: Integer
B21: $F$2 | C21: x | D21: 0 | E21: 0 | F21: Contin
B22: $F$3 | C22: x | D22: 0 | E22: 0.8000000071 | F22: Contin
B23: $F$4 | C23: x | D23: 0 | E23: 0.9000000028 | F23: Contin
B24: $F$5 | C24: x | D24: 0 | E24: 1.000000011 | F24: Contin
B25: $F$6 | C25: x | D25: 0 | E25: 1.099999979 | F25: Contin
B26: $F$7 | C26: x | D26: 0 | E26: 0 | F26: Contin
B27: $F$8 | C27: x | D27: 0 | E27: 0 | F27: Contin
B28: $F$9 | C28: x | D28: 0 | E28: 0 | F28: Contin
B29: $F$10 | C29: x | D29: 0 | E29: 0 | F29: Contin
B30: $F$11 | C30: x | D30: 0 | E30: 0 | F30: Contin
A33: Constraints
B34: Cell | C34: Name | D34: Cell Value | E34: Formula | F34: Status | G34: Slack
B35: $A$16 | C35: sum variables | D35: 3.8 | E35: $A$16=$B$16 | F35: Binding | G35: 0
B36: $F$2 | C36: x | D36: 0 | E36: $F$2>=0 | F36: Binding | G36: 0
B37: $F$3 | C37: x | D37: 0.8000000071 | E37: $F$3>=0 | F37: Not Binding | G37: 0.8000000071
B38: $F$4 | C38: x | D38: 0.9000000028 | E38: $F$4>=0 | F38: Not Binding | G38: 0.9000000028
B39: $F$5 | C39: x | D39: 1.000000011 | E39: $F$5>=0 | F39: Not Binding | G39: 1.000000011
B40: $F$6 | C40: x | D40: 1.099999979 | E40: $F$6>=0 | F40: Not Binding | G40: 1.099999979
B41: $F$7 | C41: x | D41: 0 | E41: $F$7>=0 | F41: Binding | G41: 0
B42: $F$8 | C42: x | D42: 0 | E42: $F$8>=0 | F42: Binding | G42: 0
B43: $F$9 | C43: x | D43: 0 | E43: $F$9>=0 | F43: Binding | G43: 0
B44: $F$10 | C44: x | D44: 0 | E44: $F$10>=0 | F44: Binding | G44: 0
B45: $F$11 | C45: x | D45: 0 | E45: $F$11>=0 | F45: Binding | G45: 0

Sheet Sensitivity Report 1
A1: Microsoft Excel 14.1 Sensitivity Report
A2: Worksheet: [Workbook1]Sheet1
A3: Report Created: 5/23/2016 11:06:28 AM
A6: Variable Cells
D7: Final | E7: Reduced
B8: Cell | C8: Name | D8: Value | E8: Gradient
B9: $F$2 | C9: x | D9: 0 | E9: 0.3999991417
B10: $F$3 | C10: x | D10: 0.8000000071 | E10: 0
B11: $F$4 | C11: x | D11: 0.9000000028 | E11: 0
B12: $F$5 | C12: x | D12: 1.000000011 | E12: 0
B13: $F$6 | C13: x | D13: 1.099999979 | E13: 0
B14: $F$7 | C14: x | D14: 0 | E14: 1.59999907
B15: $F$8 | C15: x | D15: 0 | E15: 5.399999142
B16: $F$9 | C16: x | D16: 0 | E16: 9.199999332
B17: $F$10 | C17: x | D17: 0 | E17: 12.99999905
B18: $F$11 | C18: x | D18: 0 | E18: 0.3999991417
A20: Constraints
D21: Final | E21: Lagrange
B22: Cell | C22: Name | D22: Value | E22: Multiplier
B23: $A$16 | C23: sum variables | D23: 3.8 | E23: -2.999998093

Sheet Program
A1: x | B1: Optimal load | F1: objective
A2: 0 | B2: =Data!B2*(1-Data!$J$2)+A2 -> 2.720796327 | F2: =SUM(Data!G2:G25) -> 11.7803125
A3: 0 | B3: =Data!B3*(1-Data!$J$2)+A3 -> 2.403382527
A4: 0 | B4: =Data!B4*(1-Data!$J$2)+A4 -> 2.040976015
A5: 0 | B5: =Data!B5*(1-Data!$J$2)+A5 -> 1.723603669
A6: 0 | B6: =Data!B6*(1-Data!$J$2)+A6 -> 1.534308216
A7: 0 | B7: =Data!B7*(1-Data!$J$2)+A7 -> 1.505210191
A8: 0 | B8: =Data!B8*(1-Data!$J$2)+A8 -> 1.60364596
A9: 0 | B9: =Data!B9*(1-Data!$J$2)+A9 -> 1.756698315
A10: 0 | B10: =Data!B10*(1-Data!$J$2)+A10 -> 1.898264027
A11: 0 | B11: =Data!B11*(1-Data!$J$2)+A11 -> 2.008718138
A12: 0 | B12: =Data!B12*(1-Data!$J$2)+A12 -> 2.122163295
A13: 0 | B13: =Data!B13*(1-Data!$J$2)+A13 -> 2.297047982
A14: 0 | B14: =Data!B14*(1-Data!$J$2)+A14 -> 2.569381281
A15: 0 | B15: =Data!B15*(1-Data!$J$2)+A15 -> 2.918965475
A16: 0 | B16: =Data!B16*(1-Data!$J$2)+A16 -> 3.270894027
A17: 0 | B17: =Data!B17*(1-Data!$J$2)+A17 -> 3.532203813
A18: 0 | B18: =Data!B18*(1-Data!$J$2)+A18 -> 3.64122016
A19: 0 | B19: =Data!B19*(1-Data!$J$2)+A19 -> 3.598983498
A20: 0 | B20: =Data!B20*(1-Data!$J$2)+A20 -> 3.463378366
A21: 0 | B21: =Data!B21*(1-Data!$J$2)+A21 -> 3.310078653
A22: 0 | B22: =Data!B22*(1-Data!$J$2)+A22 -> 3.185275597 | D22: Spilled solar energy (optimized) | E22: =-SUM(Data!H2:H25) -> 0 | F22: kWh | H22: Number of solar panels | I22: 0 | J22: Percentage of shiftable load | K22: 0
A23: 0 | B23: =Data!B23*(1-Data!$J$2)+A23 -> 3.080143915 | D23: Spilled solar energy (not optimized) | E23: =-SUM(Data!I2:I25) -> 0 | F23: kWh
A24: 0 | B24: =Data!B24*(1-Data!$J$2)+A24 -> 2.942976069 | D24: Cost of serving load (optimized) | E24: =24*Data!B32+Data!B33*SUM(Data!N2:N25)+Data!B34*SUM(Data!O2:O26) -> 257.0174508 | F24: Cost of serving load (not optimized) | G24: =24*Data!B32+Data!B33*SUM(Data!N2:N25)+Data!B34*SUM(Data!P2:P26) -> 257.0174508
A25: 0 | B25: =Data!B25*(1-Data!$J$2)+A25 -> 2.720796327
A32: sum variables
A33: =SUM(A2:A25) -> 0 | B33: =SUM(Data!B2:B25)*Data!$J$2 -> 0

Sheet Data
A1: time | B1: Load | C1: Solar power | D1: Net load | E1: shiftable load | F1: Optimal Net load | G1: Diff squared | H1: Solar spillage | I1: solar spillage (not optimized) | J1: alpha | K1: ave net load | M1: pos opt net load | N1: pos net load | O1: square Optimal net load | P1: square net load
A2: 1 | B2: =1+COS((Data!A2-1)*2*PI()/(23) + PI()/2) + 0.15*COS(3*(Data!A2-1)*2*PI()/(23))+PI()/2 -> 2.720796327 | C2: =IF(SIN(1.5*(Data!A2-1)*PI()/23 - 0.22*PI())<0, 0,(Program!$I$22/2)*SIN(1.5*(Data!A2-1)*PI()/23 - 0.22*PI())) -> 0 | D2: =Data!B2-Data!C2 -> 2.720796327 | E2: =Data!B2*Data!$J$2 -> 0 | F2: =Data!B2*(1-Data!$J$2)+Program!A2-Data!C2 -> 2.720796327 | G2: =(Data!$K$2-Data!F2)^2 -> 0.0206640625 | H2: =IF(Data!F2<0,Data!F2,0) -> 0 | I2: =IF(D2<0,D2,0) -> 0 | J2: =Program!K22/100 -> 0 | K2: =AVERAGE(Data!D2:D25) -> 2.577046327 | M2: =IF(F2>0,F2,0) -> 2.720796327 | N2: =IF(D2>0,D2,0) -> 2.720796327 | O2: =M2^2 -> 7.402732652 | P2: =N2^2 -> 7.402732652
A3: 2 | B3: =1+COS((Data!A3-1)*2*PI()/(23) + PI()/2) + 0.15*COS(3*(Data!A3-1)*2*PI()/(23))+PI()/2 -> 2.403382527 | C3: =IF(SIN(1.5*(Data!A3-1)*PI()/23 - 0.22*PI())<0, 0,(Program!$I$22/2)*SIN(1.5*(Data!A3-1)*PI()/23 - 0.22*PI())) -> 0 | D3: =Data!B3-Data!C3 -> 2.403382527 | E3: =Data!B3*Data!$J$2 -> 0 | F3: =Data!B3*(1-Data!$J$2)+Program!A3-Data!C3 -> 2.403382527 | G3: =(Data!$K$2-Data!F3)^2 -> 0.03015911532 | H3: =IF(Data!F3<0,Data!F3,0) -> 0 | I3: =IF(D3<0,D3,0) -> 0 | M3: =IF(F3>0,F3,0) -> 2.403382527 | N3: =IF(D3>0,D3,0) -> 2.403382527 | O3: =M3^2 -> 5.776247572 | P3: =N3^2 -> 5.776247572
A4: 3 | B4: =1+COS((Data!A4-1)*2*PI()/(23) + PI()/2) + 0.15*COS(3*(Data!A4-1)*2*PI()/(23))+PI()/2 -> 2.040976015 | C4: =IF(SIN(1.5*(Data!A4-1)*PI()/23 - 0.22*PI())<0, 0,(Program!$I$22/2)*SIN(1.5*(Data!A4-1)*PI()/23 - 0.22*PI())) -> 0 | D4: =Data!B4-Data!C4 -> 2.040976015 | E4: =Data!B4*Data!$J$2 -> 0 | F4: =Data!B4*(1-Data!$J$2)+Program!A4-Data!C4 -> 2.040976015 | G4: =(Data!$K$2-Data!F4)^2 -> 0.2873713795 | H4: =IF(Data!F4<0,Data!F4,0) -> 0 | I4: 0 | M4: 2.040976015 | N4: 2.040976015 | O4: 4.165583093 | P4: 4.165583093
A5: 4 | B5: =1+COS((Data!A5-1)*2*PI()/(23) + PI()/2) + 0.15*COS(3*(Data!A5-1)*2*PI()/(23))+PI()/2 -> 1.723603669 | C5: =IF(SIN(1.5*(Data!A5-1)*PI()/23 - 0.22*PI())<0, 0,(Program!$I$22/2)*SIN(1.5*(Data!A5-1)*PI()/23 - 0.22*PI())) -> 0 | D5: =Data!B5-Data!C5 -> 1.723603669 | E5: =Data!B5*Data!$J$2 -> 0 | F5: =Data!B5*(1-Data!$J$2)+Program!A5-Data!C5 -> 1.723603669 | G5: =(Data!$K$2-Data!F5)^2 -> 0.7283643703 | H5: =IF(Data!F5<0,Data!F5,0) -> 0 | I5: 0 | M5: 1.723603669 | N5: 1.723603669 | O5: 2.970809607 | P5: 2.970809607
A6: 5 | B6: =1+COS((Data!A6-1)*2*PI()/(23) + PI()/2) + 0.15*COS(3*(Data!A6-1)*2*PI()/(23))+PI()/2 -> 1.534308216 | C6: =IF(SIN(1.5*(Data!A6-1)*PI()/23 - 0.22*PI())<0, 0,(Program!$I$22/2)*SIN(1.5*(Data!A6-1)*PI()/23 - 0.22*PI())) -> 0 | D6: =Data!B6-Data!C6 -> 1.534308216 | E6: =Data!B6*Data!$J$2 -> 0 | F6: =Data!B6*(1-Data!$J$2)+Program!A6-Data!C6 -> 1.534308216 | G6: =(Data!$K$2-Data!F6)^2 -> 1.087302767 | H6: =IF(Data!F6<0,Data!F6,0) -> 0 | I6: 0 | M6: 1.534308216 | N6: 1.534308216 | O6: 2.354101703 | P6: 2.354101703
A7: 6 | B7: =1+COS((Data!A7-1)*2*PI()/(23) + PI()/2) + 0.15*COS(3*(Data!A7-1)*2*PI()/(23))+PI()/2 -> 1.505210191 | C7: =IF(SIN(1.5*(Data!A7-1)*PI()/23 - 0.22*PI())<0, 0,(Program!$I$22/2)*SIN(1.5*(Data!A7-1)*PI()/23 - 0.22*PI())) -> 0 | D7: =Data!B7-Data!C7 -> 1.505210191 | E7: =Data!B7*Data!$J$2 -> 0 | F7: =Data!B7*(1-Data!$J$2)+Program!A7-Data!C7 -> 1.505210191 | G7: =(Data!$K$2-Data!F7)^2 -> 1.148832702 | H7: =IF(Data!F7<0,Data!F7,0) -> 0 | I7: 0 | M7: 1.505210191 | N7: 1.505210191 | O7: 2.265657718 | P7: 2.265657718
A8: 7 | B8: =1+COS((Data!A8-1)*2*PI()/(23) + PI()/2) + 0.15*COS(3*(Data!A8-1)*2*PI()/(23))+PI()/2 -> 1.60364596 | C8: =IF(SIN(1.5*(Data!A8-1)*PI()/23 - 0.22*PI())<0, 0,(Program!$I$22/2)*SIN(1.5*(Data!A8-1)*PI()/23 - 0.22*PI())) -> 0 | D8: =Data!B8-Data!C8 -> 1.60364596 | E8: =Data!B8*Data!$J$2 -> 0 | F8: =Data!B8*(1-Data!$J$2)+Program!A8-Data!C8 -> 1.60364596 | G8: =(Data!$K$2-Data!F8)^2 -> 0.9475082749 | H8: =IF(Data!F8<0,Data!F8,0) -> 0 | I8: 0 | M8: 1.60364596 | N8: 1.60364596 | O8: 2.571680364 | P8: 2.571680364
A9: 8 | B9: =1+COS((Data!A9-1)*2*PI()/(23) + PI()/2) + 0.15*COS(3*(Data!A9-1)*2*PI()/(23))+PI()/2 -> 1.756698315 | C9: =IF(SIN(1.5*(Data!A9-1)*PI()/23 - 0.22*PI())<0, 0,(Program!$I$22/2)*SIN(1.5*(Data!A9-1)*PI()/23 - 0.22*PI())) -> 0 | D9: =Data!B9-Data!C9 -> 1.756698315 | E9: =Data!B9*Data!$J$2 -> 0 | F9: =Data!B9*(1-Data!$J$2)+Program!A9-Data!C9 -> 1.756698315 | G9: =(Data!$K$2-Data!F9)^2 -> 0.6729708599 | H9: =IF(Data!F9<0,Data!F9,0) -> 0 | I9: 0 | M9: 1.756698315 | N9: 1.756698315 | O9: 3.085988971 | P9: 3.085988971
A10: 9 | B10: =1+COS((Data!A10-1)*2*PI()/(23) + PI()/2) + 0.15*COS(3*(Data!A10-1)*2*PI()/(23))+PI()/2 -> 1.898264027 | C10: =IF(SIN(1.5*(Data!A10-1)*PI()/23 - 0.22*PI())<0, 0,(Program!$I$22/2)*SIN(1.5*(Data!A10-1)*PI()/23 - 0.22*PI())) -> 0 | D10: =Data!B10-Data!C10 -> 1.898264027 | E10: =Data!B10*Data!$J$2 -> 0 | F10: =Data!B10*(1-Data!$J$2)+Program!A10-Data!C10 -> 1.898264027 | G10: =(Data!$K$2-Data!F10)^2 -> 0.4607454107 | H10: =IF(Data!F10<0,Data!F10,0) -> 0 | I10: 0 | M10: 1.898264027 | N10: 1.898264027 | O10: 3.603406316 | P10: 3.603406316
A11: 10 | B11: =1+COS((Data!A11-1)*2*PI()/(23) + PI()/2) + 0.15*COS(3*(Data!A11-1)*2*PI()/(23))+PI()/2 -> 2.008718138 | C11: =IF(SIN(1.5*(Data!A11-1)*PI()/23 - 0.22*PI())<0, 0,(Program!$I$22/2)*SIN(1.5*(Data!A11-1)*PI()/23 - 0.22*PI())) -> 0 | D11: =Data!B11-Data!C11 -> 2.008718138 | E11: =Data!B11*Data!$J$2 -> 0 | F11: =Data!B11*(1-Data!$J$2)+Program!A11-Data!C11 -> 2.008718138 | G11: =(Data!$K$2-Data!F11)^2 -> 0.32299693 | H11: =IF(Data!F11<0,Data!F11,0) -> 0 | I11: 0 | M11: 2.008718138 | N11: 2.008718138 | O11: 4.034948558 | P11: 4.034948558
A12: 11 | B12: =1+COS((Data!A12-1)*2*PI()/(23) + PI()/2) + 0.15*COS(3*(Data!A12-1)*2*PI()/(23))+PI()/2 -> 2.122163295 | C12: =IF(SIN(1.5*(Data!A12-1)*PI()/23 - 0.22*PI())<0, 0,(Program!$I$22/2)*SIN(1.5*(Data!A12-1)*PI()/23 - 0.22*PI())) -> 0 | D12: =Data!B12-Data!C12 -> 2.122163295 | E12: =Data!B12*Data!$J$2 -> 0 | F12: =Data!B12*(1-Data!$J$2)+Program!A12-Data!C12 -> 2.122163295 | G12: =(Data!$K$2-Data!F12)^2 -> 0.2069185725 | H12: =IF(Data!F12<0,Data!F12,0) -> 0 | I12: 0 | M12: 2.122163295 | N12: 2.122163295 | O12: 4.503577051 | P12: 4.503577051
A13: 12 | B13: =1+COS((Data!A13-1)*2*PI()/(23) + PI()/2) + 0.15*COS(3*(Data!A13-1)*2*PI()/(23))+PI()/2 -> 2.297047982 | C13: =IF(SIN(1.5*(Data!A13-1)*PI()/23 - 0.22*PI())<0, 0,(Program!$I$22/2)*SIN(1.5*(Data!A13-1)*PI()/23 - 0.22*PI())) -> 0 | D13: =Data!B13-Data!C13 -> 2.297047982 | E13: =Data!B13*Data!$J$2 -> 0 | F13: =Data!B13*(1-Data!$J$2)+Program!A13-Data!C13 -> 2.297047982 | G13: =(Data!$K$2-Data!F13)^2 -> 0.07839907282 | H13: =IF(Data!F13<0,Data!F13,0) -> 0 | I13: 0 | M13: 2.297047982 | N13: 2.297047982 | O13: 5.276429434 | P13: 5.276429434
A14: 13 | B14: =1+COS((Data!A14-1)*2*PI()/(23) + PI()/2) + 0.15*COS(3*(Data!A14-1)*2*PI()/(23))+PI()/2 -> 2.569381281 | C14: =IF(SIN(1.5*(Data!A14-1)*PI()/23 - 0.22*PI())<0, 0,(Program!$I$22/2)*SIN(1.5*(Data!A14-1)*PI()/23 - 0.22*PI())) -> 0 | D14: =Data!B14-Data!C14 -> 2.569381281 | E14: =Data!B14*Data!$J$2 -> 0 | F14: =Data!B14*(1-Data!$J$2)+Program!A14-Data!C14 -> 2.569381281 | G14: =(Data!$K$2-Data!F14)^2 -> 5.875293217e-05 | H14: =IF(Data!F14<0,Data!F14,0) -> 0 | I14: 0 | M14: 2.569381281 | N14: 2.569381281 | O14: 6.601720165 | P14: 6.601720165
A15: 14 | B15: =1+COS((Data!A15-1)*2*PI()/(23) + PI()/2) + 0.15*COS(3*(Data!A15-1)*2*PI()/(23))+PI()/2 -> 2.918965475 | C15: =IF(SIN(1.5*(Data!A15-1)*PI()/23 - 0.22*PI())<0, 0,(Program!$I$22/2)*SIN(1.5*(Data!A15-1)*PI()/23 - 0.22*PI())) -> 0 | D15: =Data!B15-Data!C15 -> 2.918965475 | E15: =Data!B15*Data!$J$2 -> 0 | F15: =Data!B15*(1-Data!$J$2)+Program!A15-Data!C15 -> 2.918965475 | G15: =(Data!$K$2-Data!F15)^2 -> 0.1169087038 | H15: =IF(Data!F15<0,Data!F15,0) -> 0 | I15: 0 | M15: 2.918965475 | N15: 2.918965475 | O15: 8.520359443 | P15: 8.520359443
A16: 15 | B16: =1+COS((Data!A16-1)*2*PI()/(23) + PI()/2) + 0.15*COS(3*(Data!A16-1)*2*PI()/(23))+PI()/2 -> 3.270894027 | C16: =IF(SIN(1.5*(Data!A16-1)*PI()/23 - 0.22*PI())<0, 0,(Program!$I$22/2)*SIN(1.5*(Data!A16-1)*PI()/23 - 0.22*PI())) -> 0 | D16: =Data!B16-Data!C16 -> 3.270894027 | E16: =Data!B16*Data!$J$2 -> 0 | F16: =Data!B16*(1-Data!$J$2)+Program!A16-Data!C16 -> 3.270894027 | G16: =(Data!$K$2-Data!F16)^2 -> 0.4814246308 | H16: =IF(Data!F16<0,Data!F16,0) -> 0 | I16: 0 | M16: 3.270894027 | N16: 3.270894027 | O16: 10.69874773 | P16: 10.69874773
A17: 16 | B17: =1+COS((Data!A17-1)*2*PI()/(23) + PI()/2) + 0.15*COS(3*(Data!A17-1)*2*PI()/(23))+PI()/2 -> 3.532203813 | C17: =IF(SIN(1.5*(Data!A17-1)*PI()/23 - 0.22*PI())<0, 0,(Program!$I$22/2)*SIN(1.5*(Data!A17-1)*PI()/23 - 0.22*PI())) -> 0 | D17: =Data!B17-Data!C17 -> 3.532203813 | E17: =Data!B17*Data!$J$2 -> 0 | F17: =Data!B17*(1-Data!$J$2)+Program!A17-Data!C17 -> 3.532203813 | G17: =(Data!$K$2-Data!F17)^2 -> 0.9123258233 | H17: =IF(Data!F17<0,Data!F17,0) -> 0 | I17: 0 | M17: 3.532203813 | N17: 3.532203813 | O17: 12.47646378 | P17: 12.47646378
A18: 17 | B18: =1+COS((Data!A18-1)*2*PI()/(23) + PI()/2) + 0.15*COS(3*(Data!A18-1)*2*PI()/(23))+PI()/2 -> 3.64122016 | C18: =IF(SIN(1.5*(Data!A18-1)*PI()/23 - 0.22*PI())<0, 0,(Program!$I$22/2)*SIN(1.5*(Data!A18-1)*PI()/23 - 0.22*PI())) -> 0 | D18: =Data!B18-Data!C18 -> 3.64122016 | E18: =Data!B18*Data!$J$2 -> 0 | F18: =Data!B18*(1-Data!$J$2)+Program!A18-Data!C18 -> 3.64122016 | G18: =(Data!$K$2-Data!F18)^2 -> 1.132465946 | H18: =IF(Data!F18<0,Data!F18,0) -> 0 | I18: 0 | M18: 3.64122016 | N18: 3.64122016 | O18: 13.25848425 | P18: 13.25848425
A19: 18 | B19: =1+COS((Data!A19-1)*2*PI()/(23) + PI()/2) + 0.15*COS(3*(Data!A19-1)*2*PI()/(23))+PI()/2 -> 3.598983498 | C19: =IF(SIN(1.5*(Data!A19-1)*PI()/23 - 0.22*PI())<0, 0,(Program!$I$22/2)*SIN(1.5*(Data!A19-1)*PI()/23 - 0.22*PI())) -> 0 | D19: =Data!B19-Data!C19 -> 3.598983498 | E19: =Data!B19*Data!$J$2 -> 0 | F19: =Data!B19*(1-Data!$J$2)+Program!A19-Data!C19 -> 3.598983498 | G19: =(Data!$K$2-Data!F19)^2 -> 1.044355582 | H19: =IF(Data!F19<0,Data!F19,0) -> 0 | I19: 0 | M19: 3.598983498 | N19: 3.598983498 | O19: 12.95268222 | P19: 12.95268222
A20: 19 | B20: =1+COS((Data!A20-1)*2*PI()/(23) + PI()/2) + 0.15*COS(3*(Data!A20-1)*2*PI()/(23))+PI()/2 -> 3.463378366 | C20: =IF(SIN(1.5*(Data!A20-1)*PI()/23 - 0.22*PI())<0, 0,(Program!$I$22/2)*SIN(1.5*(Data!A20-1)*PI()/23 - 0.22*PI())) -> 0 | D20: =Data!B20-Data!C20 -> 3.463378366 | E20: =Data!B20*Data!$J$2 -> 0 | F20: =Data!B20*(1-Data!$J$2)+Program!A20-Data!C20 -> 3.463378366 | G20: =(Data!$K$2-Data!F20)^2 -> 0.785584484 | H20: =IF(Data!F20<0,Data!F20,0) -> 0 | I20: 0 | M20: 3.463378366 | N20: 3.463378366 | O20: 11.99498971 | P20: 11.99498971
A21: 20 | B21: =1+COS((Data!A21-1)*2*PI()/(23) + PI()/2) + 0.15*COS(3*(Data!A21-1)*2*PI()/(23))+PI()/2 -> 3.310078653 | C21: =IF(SIN(1.5*(Data!A21-1)*PI()/23 - 0.22*PI())<0, 0,(Program!$I$22/2)*SIN(1.5*(Data!A21-1)*PI()/23 - 0.22*PI())) -> 0 | D21: =Data!B21-Data!C21 -> 3.310078653 | E21: =Data!B21*Data!$J$2 -> 0 | F21: =Data!B21*(1-Data!$J$2)+Program!A21-Data!C21 -> 3.310078653 | G21: =(Data!$K$2-Data!F21)^2 -> 0.5373363917 | H21: =IF(Data!F21<0,Data!F21,0) -> 0 | I21: 0 | M21: 3.310078653 | N21: 3.310078653 | O21: 10.95662069 | P21: 10.95662069
A22: 21 | B22: =1+COS((Data!A22-1)*2*PI()/(23) + PI()/2) + 0.15*COS(3*(Data!A22-1)*2*PI()/(23))+PI()/2 -> 3.185275597 | C22: =IF(SIN(1.5*(Data!A22-1)*PI()/23 - 0.22*PI())<0, 0,(Program!$I$22/2)*SIN(1.5*(Data!A22-1)*PI()/23 - 0.22*PI())) -> 0 | D22: =Data!B22-Data!C22 -> 3.185275597 | E22: =Data!B22*Data!$J$2 -> 0 | F22: =Data!B22*(1-Data!$J$2)+Program!A22-Data!C22 -> 3.185275597 | G22: =(Data!$K$2-Data!F22)^2 -> 0.3699428457 | H22: =IF(Data!F22<0,Data!F22,0) -> 0 | I22: 0 | M22: 3.185275597 | N22: 3.185275597 | O22: 10.14598063 | P22: 10.14598063
A23: 22 | B23: =1+COS((Data!A23-1)*2*PI()/(23) + PI()/2) + 0.15*COS(3*(Data!A23-1)*2*PI()/(23))+PI()/2 -> 3.080143915 | C23: =IF(SIN(1.5*(Data!A23-1)*PI()/23 - 0.22*PI())<0, 0,(Program!$I$22/2)*SIN(1.5*(Data!A23-1)*PI()/23 - 0.22*PI())) -> 0 | D23: =Data!B23-Data!C23 -> 3.080143915 | E23: =Data!B23*Data!$J$2 -> 0 | F23: =Data!B23*(1-Data!$J$2)+Program!A23-Data!C23 -> 3.080143915 | G23: =(Data!$K$2-Data!F23)^2 -> 0.2531071831 | H23: =IF(Data!F23<0,Data!F23,0) -> 0 | I23: 0 | M23: 3.080143915 | N23: 3.080143915 | O23: 9.487286536 | P23: 9.487286536
A24: 23 | B24: =1+COS((Data!A24-1)*2*PI()/(23) + PI()/2) + 0.15*COS(3*(Data!A24-1)*2*PI()/(23))+PI()/2 -> 2.942976069 | C24: =IF(SIN(1.5*(Data!A24-1)*PI()/23 - 0.22*PI())<0, 0,(Program!$I$22/2)*SIN(1.5*(Data!A24-1)*PI()/23 - 0.22*PI())) -> 0 | D24: =Data!B24-Data!C24 -> 2.942976069 | E24: =Data!B24*Data!$J$2 -> 0 | F24: =Data!B24*(1-Data!$J$2)+Program!A24-Data!C24 -> 2.942976069 | G24: =(Data!$K$2-Data!F24)^2 -> 0.1339045765 | H24: =IF(Data!F24<0,Data!F24,0) -> 0 | I24: 0 | M24: 2.942976069 | N24: 2.942976069 | O24: 8.661108145 | P24: 8.661108145
A25: 24 | B25: =1+COS((Data!A25-1)*2*PI()/(23) + PI()/2) + 0.15*COS(3*(Data!A25-1)*2*PI()/(23))+PI()/2 -> 2.720796327 | C25: =IF(SIN(1.5*(Data!A25-1)*PI()/23 - 0.22*PI())<0, 0,(Program!$I$22/2)*SIN(1.5*(Data!A25-1)*PI()/23 - 0.22*PI())) -> 0 | D25: =Data!B25-Data!C25 -> 2.720796327 | E25: =Data!B25*Data!$J$2 -> 0 | F25: =Data!B25*(1-Data!$J$2)+Program!A25-Data!C25 -> 2.720796327 | G25: =(Data!$K$2-Data!F25)^2 -> 0.0206640625 | H25: =IF(Data!F25<0,Data!F25,0) -> 0 | I25: 0 | M25: 2.720796327 | N25: 2.720796327 | O25: 7.402732652 | P25: 7.402732652
A30: Generator data
A32: a | B32: 1
A33: b | B33: 1
A34: c | B34: 1
